Cogmind - Beta 13 @@@ ROGUE MODE // 2024.05.19 @ 12:58:03 Player: A Moose Result: Destroyed by G-50 Soldier with Heavy Laser Performance ------------- Evolutions (4) 2000 Regions Visited (12) 2400 Robots Destroyed (224) 1120 Value Destroyed (8251) 8251 Prototype IDs (17) 340 Alien Tech Used (0) 0 Bonus (2168) 2168 TOTAL SCORE: 16279 Bonus ------- High Alert Combat Kills 1327 Follower Combat Kills 420 Entered Garrisons 200 Acquired ECA 300 Friendly Fire -79 Cogmind --------- Core Integrity 0/850 Matter 300/300 Energy 23/100 System Corruption 4% Temperature Cool (27) Movement Core (50) Location -6/Lower Caves Parts ------- > --- POWER (1) -------- (None) > --- PROPULSION (3) --- (None) > --- UTILITY (7) ------ (None) > --- WEAPON (4) ------- (None) > --- INVENTORY (5) ---- Target Analyzer Matter Filter Authchip [Propulsion] Plasma Cutter Segregator Peak State ------------ > --- POWER ------------ Light Fission Core > --- PROPULSION ------- Armored Treads Armored Treads Medium Treads > --- UTILITY ---------- Cryofiber Web High-capacity Storage Unit Improved Sensor Array Improved Signal Interpreter Advanced Targeting Computer Core Analyzer Hardened Medium Armor Plating > --- WEAPON ----------- High-powered Shock Rifle Improved Lightning Gun Thermic Laser Heavy Pick > --- INVENTORY -------- Deuterium Engine Medium Treads Medium Treads Medium Treads Wheel Improved Heat Sink High-capacity Storage Unit Target Analyzer Armor Integrity Analyzer Transmission Jammer Improved Light Armor Plating Thermal Shield Authchip [Propulsion] Heavy Laser Plasma Rifle Rocket Launcher Improved Concussive RPG Plasma Cutter Katana [Rating: 62] Favorites ----------- Power Ion Engine Engine Ion Engine Power Core Light Nuclear Core Reactor Light Antimatter Reactor Propulsion Armored Treads Treads Armored Treads Wheel Wheel Utility Improved Signal Interpreter Device Improved Sensor Array Storage High-capacity Storage Unit Processor Improved Signal Interpreter Protection Hardened Medium Armor Plating Weapon Assault Cannon Energy Gun Heavy EM Shotgun Energy Cannon EM Pulse Cannon Ballistic Gun High-powered Shotgun Ballistic Cannon Assault Cannon Launcher Missile Launcher Impact Weapon Heavy Flail Slashing Weapon Blade Saw Piercing Weapon Heavy Pick Build | -11 -10 -10 -9 -9 -9 -8 -8 -8 -8 -8 -6 -6 ------- Run | Yrd Mat Min Mat Min Exi Min Mat Sto Gar Rec Fac Low Slots Evolved 8 | . . . 2 . . . 2 . . . 4 . Power . | . . . . . . . . . . . . . Propulsion 1 | . . . . . . . . . . . 1 . Utility 5 | . . . 2 . . . 1 . . . 2 . Weapon 2 | . . . . . . . 1 . . . 1 . Parts Attached 135 | 7 6 3 7 2 . 6 26 6 12 3 42 15 Power 9 | 1 . 1 . . . . 1 1 1 . 3 1 Engine 6 | 1 . 1 . . . . 1 1 . . 2 . Core 2 | . . . . . . . . . 1 . 1 . Reactor 1 | . . . . . . . . . . . . 1 Propulsion 27 | 2 1 1 . 1 . . 8 1 1 . 10 2 Treads 25 | 2 1 1 . 1 . . 6 1 1 . 10 2 Leg . | . . . . . . . . . . . . . Wheel 2 | . . . . . . . 2 . . . . . Hover . | . . . . . . . . . . . . . Flight . | . . . . . . . . . . . . . Utility 36 | 1 3 . 2 1 . 1 8 . 2 1 11 6 Device 16 | . . . 1 . . . 4 . . . 6 5 Storage 4 | 1 2 . . . . . 1 . . . . . Processor 4 | . 1 . . . . . 1 . 1 . 1 . Hackware . | . . . . . . . . . . . . . Protection 12 | . . . 1 1 . 1 2 . 1 1 4 1 Artifact . | . . . . . . . . . . . . . Weapon 63 | 3 2 1 5 . . 5 9 4 8 2 18 6 Energy Gun 23 | . . . 3 . . 3 3 4 . . 8 2 Energy Cannon 2 | . . . . . . . 1 . . . . 1 Ballistic Gun 9 | 3 1 1 . . . . 1 . . . 3 . Ballistic Cannon 7 | . 1 . . . . . 1 . 5 . . . Launcher 14 | . . . 2 . . 2 2 . . 1 6 1 Special Weapon . | . . . . . . . . . . . . . Impact Weapon 1 | . . . . . . . . . . 1 . . Slashing Weapon 5 | . . . . . . . 1 . 3 . . 1 Piercing Weapon 2 | . . . . . . . . . . . 1 1 Special Melee Weapon . | . . . . . . . . . . . . . Unidentified Prototypes 5 | . . . . . . . 2 3 . . . . Parts Lost 56 | . 2 1 3 . . 4 10 . 5 2 11 18 Power 5 | . . 1 . . . . . . 1 . 1 2 Propulsion 11 | . . . 1 . . . 3 . 1 . 2 4 Utility 15 | . . . 1 . . 2 2 . 2 . 2 6 Weapon 25 | . 2 . 1 . . 2 5 . 1 2 6 6 Highest Loss Streak 16 | . 1 1 1 . . 4 3 . 2 1 2 16 To Critical Strikes . | . . . . . . . . . . . . . Average Slot Usage (%) 95 | . 92 99 91 91 100 89 91 99 97 98 97 91 Engine 7 | . 14 13 11 11 11 11 9 9 5 . 2 5 Core 1 | . . . . . . . . . 1 9 3 . Treads 19 | . 27 28 20 19 22 22 17 18 17 18 19 18 Device 11 | . . . 11 11 11 1 15 18 14 9 17 11 Storage 9 | . 14 14 11 11 11 11 9 9 9 9 6 5 Processor 12 | . 13 14 11 11 11 11 6 9 12 18 16 19 Protection 6 | . . . 4 5 11 11 8 9 9 9 5 5 Energy Gun 7 | . . . 8 11 11 17 9 14 5 . 11 16 Ballistic Gun 5 | . 21 14 11 11 11 3 5 3 . . 3 5 Ballistic Cannon 8 | . . 14 2 . . . 4 9 20 19 3 . Naked Turns 4 | . . . . . . . . . . . . 4 Heaviest Build 81 | 14 29 31 35 35 35 37 69 72 74 70 81 77 Greatest Support 76 | 40 40 40 40 43 43 43 48 48 48 40 76 68 Greatest Overweight (x) 4 | . 1 . 1 1 . . 4 1 1 1 1 1 Average Overweight (x) . | . . . . . . . . 1 1 1 . . Largest Inventory Capacity 20 | 8 15 15 15 15 15 15 20 20 20 20 20 20 Average Capacity 17 | 5 12 15 15 15 15 15 17 20 20 20 20 19 Most Carried 20 | 5 15 15 15 15 15 15 20 20 20 20 20 20 Average Carried 17 | 3 10 14 14 14 14 13 16 19 18 19 18 19 Final Capacity 20 | 8 15 15 15 15 15 15 20 20 20 20 20 5 Final Carried 20 | 4 14 15 14 14 15 13 20 20 19 20 19 5 Class Distribution -------------------- 41% | Mutant 29% | Skirmisher 10% | Scavenger-Gunner 7% | Tank 4% | Scavenger-Skirmisher Dominant Class ---------------- Mutant | -10/Materials Mutant | -10/Mines Mutant | -9/Materials Mutant | -9/Mines Mutant | -9/Exiles Mutant | -8/Mines Tank | -8/Materials Skirmisher | -8/Storage Skirmisher | -8/Garrison Skirmisher | -8/Recycling Scavenger-Gunner | -6/Factory Scavenger-Gunner | -6/Lower Caves Resources | -11 -10 -10 -9 -9 -9 -8 -8 -8 -8 -8 -6 -6 ----------- Run | Yrd Mat Min Mat Min Exi Min Mat Sto Gar Rec Fac Low Matter Collected 4537 | 221 315 580 169 85 . 108 572 187 844 93 968 395 Remotely . | . . . . . . . . . . . . . Salvage Created 8147 | . 585 125 465 267 . 239 1463 522 637 333 2952 559 Parts 372 | . 41 10 34 12 . 8 67 34 25 7 118 16 Haulers Intercepted 11 | . 1 . 3 . . . 4 . . . 3 . Recyclers Shooed 11 | . 2 . . . . . . 2 . 2 5 . Parts Field Recycled . | . . . . . . . . . . . . . Retrieved Matter . | . . . . . . . . . . . . . Parts Self-Destructed 14 | . . . . . . . . . . . . 14 Prevented . | . . . . . . . . . . . . . Kills | -11 -10 -10 -9 -9 -9 -8 -8 -8 -8 -8 -6 -6 ------- Run | Yrd Mat Min Mat Min Exi Min Mat Sto Gar Rec Fac Low Combat Hostiles Destroyed 166 | . 13 10 17 6 . 6 24 10 23 1 46 10 Melee 5 | . . . . . . . 3 . . . . 2 Guns 79 | . 13 5 4 5 . 3 11 5 4 . 24 5 Cannons 42 | . . 5 1 . . . 7 4 19 1 3 2 AOE 37 | . . . 12 1 . 2 3 1 . . 17 1 Classes Destroyed 18 | . 5 1 2 2 . 1 . 1 3 . 3 . Worker 15 | . . . . . . . . 3 . . 12 . Builder 10 | . . . 1 . . . 2 1 . 1 5 . Tunneler 4 | . . . . 1 . . . . . . 3 . Hauler 11 | . 1 . 3 . . . 4 . . . 3 . Recycler 10 | . 1 . 1 . . . 1 1 . 4 2 . Mechanic 1 | . . . . . . . . . . . 1 . Watcher 11 | . 3 . 1 . . . 4 2 . . 1 . Swarmer 41 | . 6 4 13 . . . 2 4 5 . 6 1 Grunt 76 | . 7 2 2 5 . 5 16 3 11 . 21 4 Brawler 5 | . . . . . . 1 1 . . . 3 . Duelist 7 | . . . . 1 . . . . . . 3 3 Protector 1 | . . . . . . . . . 1 . . . Sentry 21 | . . . 2 . . . 5 3 4 1 4 2 Demolisher 1 | . . . . . . . . . 1 . . . Hunter 4 | . . . . . . . . . . . 4 . Programmer 5 | . . . . . . . . . 1 . 4 . Behemoth 1 | . . . . . . . . . . . 1 . Assembled 4 | . . 4 . . . . . . . . . . Best Kill Streak 11 | . 11 4 7 3 . 6 4 5 8 4 10 7 Combat Bots Only 9 | . 9 4 5 3 . 6 3 4 8 1 6 7 Max Kills in Single Turn 5 | . 2 2 3 1 . 1 2 2 1 1 5 1 Gunslinging . | . . . . . . . . . . . . . Exploded 5 | . . . 3 1 . 1 1 1 . . 5 1 Melee 1 | . . . . . . . 1 . . . . 1 Uniques/NPCs Destroyed . | . . . . . . . . . . . . . Combat | -11 -10 -10 -9 -9 -9 -8 -8 -8 -8 -8 -6 -6 -------- Run | Yrd Mat Min Mat Min Exi Min Mat Sto Gar Rec Fac Low Hostile Shots Fired 954 | . 82 34 52 19 . 26 107 37 127 4 307 159 Missed 280 | . 26 4 11 4 . 2 33 13 28 1 113 45 Damage Taken 10378 | . 608 391 451 264 . 386 1215 206 1542 66 3110 2139 Core 1590 | . 88 50 83 70 . 67 168 33 163 . 398 470 Absorbed by Shields . | . . . . . . . . . . . . . Ignored by Resistances 25 | . . . . . . . . . . . . 25 Regen/Repaired (Parts) 419 | . 133 . . . . . . . . . 286 . Core Remaining (%) 55 | 100 . 44 . . . 45 . . . 33 . . Volleys Fired 443 | . 49 22 24 15 . 13 72 25 71 6 124 22 Largest 4 | . 2 2 2 2 . 2 3 3 3 3 4 4 Hottest 242 | . 40 60 75 70 . 83 184 144 144 132 218 242 Shots Fired 985 | . 92 44 40 30 . 18 166 61 194 12 290 38 Gun 677 | . 92 22 34 30 . 14 118 38 56 . 245 28 Cannon 274 | . . 22 3 . . . 43 23 138 11 30 4 Launcher 34 | . . . 3 . . 4 5 . . 1 15 6 Special . | . . . . . . . . . . . . . Kinetic 556 | . 92 44 21 15 . 5 72 26 138 11 124 8 Thermal 216 | . . . . . . . 76 . . . 118 22 Explosive 32 | . . . 3 . . 4 3 . . 1 15 6 Electromagnetic 181 | . . . 16 15 . 9 15 35 56 . 33 2 Robot Hit Streak 31 | . 12 10 7 14 . 4 12 9 20 9 31 12 Robot Miss Streak 7 | . 3 6 4 4 . 1 4 4 6 7 6 4 Penetration Max 1 | . . . . . . . . . . . 1 . Secondary Targets 11 | . 3 . 1 1 . . . . . . 4 2 Max Gunslinging Chain 1 | . 1 . 1 1 . . . . . . 1 1 Shots Hit Robots 693 | . 64 32 30 23 . 13 134 37 104 12 212 32 Core Hits 456 | . 32 17 29 15 . 12 59 21 69 7 174 21 Critical Kills 1 | . . . . . . . . . . . 1 . Critical Parts Destroyed 5 | . 1 . . . . . . . . 1 3 . Critical Strikes 36 | . 1 1 . . . 1 14 1 2 2 13 1 Burn 10 | . . . . . . . 2 . . . 8 . Destroy 5 | . 1 . . . . . . . . . 4 . Blast 8 | . . 1 . . . . 3 1 2 1 . . Corrupt 2 | . . . . . . 1 1 . . . . . Smash 1 | . . . . . . . . . . 1 . . Sever 8 | . . . . . . . 8 . . . . . Impale 2 | . . . . . . . . . . . 1 1 Melee Attacks 52 | . . . . . . . 26 . 11 5 4 6 Impact 5 | . . . . . . . . . . 5 . . Slashing 37 | . . . . . . . 26 . 11 . . . Piercing 10 | . . . . . . . . . . . 4 6 Sneak Attacks 8 | . . . . . . . 3 . . 5 . . Combat Hostiles . | . . . . . . . . . . . . . Follow-up Attacks . | . . . . . . . . . . . . . Damage Inflicted 20129 | . 787 538 1511 496 . 521 2901 1009 2569 693 8223 881 Guns 8506 | . 787 267 560 425 . 196 1194 476 421 . 3716 464 Cannons 4340 | . . 271 55 . . . 789 319 1937 173 668 128 Explosions 6092 | . . . 896 71 . 325 480 214 211 . 3743 152 Melee 1191 | . . . . . . . 438 . . 520 96 137 Ramming . | . . . . . . . . . . . . . Kinetic 7849 | . 787 538 431 235 . 87 1018 370 1937 173 2173 100 Thermal 5615 | . . . 315 71 . 40 780 214 211 . 3522 462 Explosive 2695 | . . . 581 . . 285 292 . . . 1385 152 Electromagnetic 2752 | . . . 184 190 . 109 373 425 421 . 1020 30 Impact 547 | . . . . . . . . . . 520 27 . Slashing 438 | . . . . . . . 438 . . . . . Piercing 233 | . . . . . . . . . . . 96 137 Highest Corruption 4 | . 1 1 . . . . . . 1 1 4 4 Average Corruption 1 | . 1 1 . . . . . . 1 1 3 4 Corruption Purged . | . . . . . . . . . . . . . Corruption Blocked . | . . . . . . . . . . . . . Effects 81 | . 7 3 . . . . . . 17 8 31 15 Message Errors 23 | . 3 1 . . . . . . 6 1 9 3 Matter Fused 16 | . 1 1 . . . . . . 3 . 9 2 Heat Flow Errors 12 | . 1 1 . . . . . . 2 2 4 2 Energy Discharges 8 | . 1 . . . . . . . 1 2 1 3 Parts Rejected 2 | . . . . . . . . . . . 2 . Parts Fused 3 | . . . . . . . . . 1 1 1 . Data Loss (minor) 8 | . . . . . . . . . 1 2 2 3 Data Loss (major) 4 | . . . . . . . . . 2 . 2 . Misfires 2 | . 1 . . . . . . . 1 . . . Alerts 1 | . . . . . . . . . . . . 1 Weapon Failures 2 | . . . . . . . . . . . 1 1 Overload Shots . | . . . . . . . . . . . . . Overflow Damage 941 | . . 17 45 . . . 62 1 26 415 375 . Projectiles 68 | . . 17 . . . . 22 1 26 . 2 . Explosions 458 | . . . 45 . . . 40 . . . 373 . Melee 415 | . . . . . . . . . . 415 . . Knockbacks 52 | . . 3 . . . . 4 4 19 4 18 . Impact 5 | . . . . . . . . . . 4 1 . Kinetic 41 | . . 3 . . . . 4 3 16 . 15 . Secondary 6 | . . . . . . . . 1 3 . 2 . Self-Inflicted Damage 415 | . 50 . 74 45 . . 53 . . 20 105 68 Shots 11 | . 1 . 2 1 . . 1 . . 1 3 2 Rammed . | . . . . . . . . . . . . . Targets Rammed . | . . . . . . . . . . . . . Kicked . | . . . . . . . . . . . . . Crushed . | . . . . . . . . . . . . . Highest Temperature 376 | . 266 227 69 123 . 166 376 161 254 122 356 298 Average Temperature 82 | . 61 60 24 51 . 64 72 60 73 55 121 76 Received Heat Transfer 2925 | . 201 42 66 90 . 252 567 18 522 18 534 615 Effects 5 | . . . . . . . . . 5 . . . Interference 5 | . . . . . . . . . 5 . . . Siege Activations . | . . . . . . . . . . . . . Robots Corrupted 2 | . . . . . . 1 . . . . 1 . Combat Hostiles 1 | . . . . . . 1 . . . . . . Parts Fried 10 | . . . . 1 . 1 . . . 3 5 . Impact Corruptions 10 | . . 1 . . . . . . . 9 . . Robots Melted 2 | . . . . . . . . . . . 2 . Combat Hostiles 2 | . . . . . . . . . . . 2 . Parts Melted 15 | . . . . . . . 5 . 1 . 7 2 Heat Transferred 10351 | . . . 500 50 . 50 2024 300 165 . 6314 948 Parts Sabotaged 5 | . . . . . . . . . . . 5 . Parts Stolen . | . . . . . . . . . . . . . Parts Stripped . | . . . . . . . . . . . . . Power Chain Reactions 16 | . . . 3 1 . 1 1 3 2 . 5 . Alert | -11 -10 -10 -9 -9 -9 -8 -8 -8 -8 -8 -6 -6 ------- Run | Yrd Mat Min Mat Min Exi Min Mat Sto Gar Rec Fac Low Peak Influence 1507 | . 290 166 503 195 . 132 523 389 1378 645 1507 . Initial 619 | . . 16 7 195 . . 51 220 227 619 50 . Average 401 | . 134 81 222 131 . 97 279 267 792 294 643 . Maximum Alert Level 4 | . 1 . 2 . . . 2 1 4 2 4 . Low Security (%) 39 | 100 81 100 38 100 . 100 35 12 . 43 18 . Level 1 23 | . 18 . 53 . . . 38 87 15 24 5 . Level 2 21 | . . . 8 . . . 25 . 28 32 44 . Level 3 7 | . . . . . . . . . 38 . 3 . Level 4 8 | . . . . . . . . . 17 . 28 . Level 5 . | . . . . . . . . . . . . . High Security . | . . . . . . . . . . . . . Max Security . | . . . . . . . . . . . . . Squads Dispatched 22 | . 1 1 2 . . . 5 2 . . 11 . Investigation 12 | . . 1 1 . . . 5 2 . . 3 . Extermination 3 | . . . . . . . . . . . 3 . Reinforcement 4 | . 1 . 1 . . . . . . . 2 . Assault 2 | . . . . . . . . . . . 2 . Garrison 1 | . . . . . . . . . . . 1 . Intercept . | . . . . . . . . . . . . . Searches Triggered . | . . . . . . . . . . . . . Construction Impeded 2 | . . . . . . . . . . . 2 . Haulers Reinforced . | . . . . . . . . . . . . . Active Scanning Responses . | . . . . . . . . . . . . . Cargo Convoy Interrupts . | . . . . . . . . . . . . . Stealth | -11 -10 -10 -9 -9 -9 -8 -8 -8 -8 -8 -6 -6 --------- Run | Yrd Mat Min Mat Min Exi Min Mat Sto Gar Rec Fac Low Distress Signals 6 | . 1 . . . . . 3 1 . . 1 . Communications Jammed 3 | . . . . . . . . . . . 3 . Distress Signals 3 | . . . . . . . . . . . 3 . Times Spotted 218 | . 19 11 20 6 . 6 42 14 36 1 50 13 Peak Tracking Total 9 | . 5 5 6 3 . 3 7 4 8 1 6 9 Tactical Retreats 18 | . . 1 . . . . 8 . 3 . 5 1 Traps | -11 -10 -10 -9 -9 -9 -8 -8 -8 -8 -8 -6 -6 ------- Run | Yrd Mat Min Mat Min Exi Min Mat Sto Gar Rec Fac Low Traps Triggered 12 | . 1 . 1 . . . . 3 4 . 3 . Indirectly 2 | . . . . . . . . . . . 2 . Trap Hack Attempts . | . . . . . . . . . . . . . Triggered . | . . . . . . . . . . . . . Disarmed 1 | . . . . . . . 1 . . . . . Reprogrammed . | . . . . . . . . . . . . . Reused . | . . . . . . . . . . . . . Traps Extracted . | . . . . . . . . . . . . . Installed . | . . . . . . . . . . . . . Triggered . | . . . . . . . . . . . . . Machines | -11 -10 -10 -9 -9 -9 -8 -8 -8 -8 -8 -6 -6 ---------- Run | Yrd Mat Min Mat Min Exi Min Mat Sto Gar Rec Fac Low Machines Disabled 39 | . 1 . . . . . . 3 5 2 27 1 Max in Single Turn 11 | . 1 . . . . . . 1 1 1 11 1 Garrison Access 1 | . . . . . . . . . . . 1 . Garrison Relay 5 | . . . . . . . . . 5 . . . Machines Repaired . | . . . . . . . . . . . . . Machines Dismantled . | . . . . . . . . . . . . . Machines Sabotaged . | . . . . . . . . . . . . . Overloaded Fab Kills . | . . . . . . . . . . . . . Hacking | -11 -10 -10 -9 -9 -9 -8 -8 -8 -8 -8 -6 -6 --------- Run | Yrd Mat Min Mat Min Exi Min Mat Sto Gar Rec Fac Low Machines Accessed 35 | . 6 1 1 . 1 . 9 6 2 4 5 . Terminals 25 | . 5 . 1 . . . 7 5 2 4 1 . Fabricators 3 | . . . . . . . . . . . 3 . Repair Stations 2 | . 1 . . . . . . . . . 1 . Recycling Units . | . . . . . . . . . . . . . Scanalyzers 2 | . . . . . . . 2 . . . . . Garrison Access 1 | . . . . . . . . 1 . . . . Total Hacks 122 | . 30 1 2 . 11 . 30 14 5 11 18 . Successful 72 | . 13 1 1 . 11 . 23 7 1 5 10 . Failed 49 | . 16 . 1 . . . 7 7 4 6 8 . Catastrophic 7 | . . . . . . . 3 1 2 1 . . Database Lockouts 1 | . 1 . . . . . . . . . . . Manual 26 | . 11 . 2 . . . 13 . . . . . Terminals 83 | . 28 . 2 . . . 19 13 5 11 5 . Fabricators 8 | . . . . . . . . . . . 8 . Repair Stations 7 | . 2 . . . . . . . . . 5 . Recycling Units . | . . . . . . . . . . . . . Scanalyzers 11 | . . . . . . . 11 . . . . . Garrison Access 1 | . . . . . . . . 1 . . . . Terminal Hacks 48 | . 11 1 1 . 11 . 10 6 1 5 2 . Record 11 | . . . . . 11 . . . . . . . Robot Schematic 1 | . . . . . . . . 1 . . . . Robot Analysis 7 | . 3 . 1 . . . 2 . . 1 . . Prototype ID Bank 7 | . 3 . . . . . 1 1 . 1 1 . Open Door 3 | . . 1 . . . . . 2 . . . . Branch Access Points 1 | . . . . . . . . . . . 1 . Emergency Access Points 2 | . . . . . . . 1 . 1 . . . Alert Level 4 | . 1 . . . . . 1 1 . 1 . . Unreport Threat 2 | . . . . . . . . . . 2 . . Locate Traps 6 | . 3 . . . . . 2 1 . . . . Disarm Traps 1 | . . . . . . . 1 . . . . . Investigation Status 1 | . 1 . . . . . . . . . . . Zone Layout 2 | . . . . . . . 2 . . . . . Fabricator Hacks 4 | . . . . . . . . . . . 4 . Network Status 2 | . . . . . . . . . . . 2 . Load Schematic 1 | . . . . . . . . . . . 1 . Build 1 | . . . . . . . . . . . 1 . Repair Station Hacks 6 | . 2 . . . . . . . . . 4 . Scan Component 3 | . 1 . . . . . . . . . 2 . Repair 3 | . 1 . . . . . . . . . 2 . Recycling Unit Hacks . | . . . . . . . . . . . . . Scanalyzer 8 | . . . . . . . 8 . . . . . Insert Component 4 | . . . . . . . 4 . . . . . Analyze 4 | . . . . . . . 4 . . . . . Garrison Access Hacks 1 | . . . . . . . . 1 . . . . Unlock Access 1 | . . . . . . . . 1 . . . . Unauthorized Hacks 5 | . . . . . . . 5 . . . . . Terminals 3 | . . . . . . . 3 . . . . . Botnet 2 | . . . . . . . 2 . . . . . Search 1 | . . . . . . . 1 . . . . . Fabricators . | . . . . . . . . . . . . . Repair Stations . | . . . . . . . . . . . . . Recycling Units . | . . . . . . . . . . . . . Scanalyzers 2 | . . . . . . . 2 . . . . . Extract 2 | . . . . . . . 2 . . . . . Garrison Access . | . . . . . . . . . . . . . Data Cores Recovered . | . . . . . . . . . . . . . Used . | . . . . . . . . . . . . . Hacking Detections 32 | . 6 . 1 . . . 9 5 2 4 5 . Full Trace Events 11 | . 1 . . . . . 3 2 1 1 3 . Feedback Events . | . . . . . . . . . . . . . Feedback Blocked . | . . . . . . . . . . . . . Robot Schematics Acquired 1 | . . . . . . . . 1 . . . . Robots Built . | . . . . . . . . . . . . . Authchips . | . . . . . . . . . . . . . Time . | . . . . . . . . . . . . . Total Robot Build Rating . | . . . . . . . . . . . . . Part Schematics Acquired 8 | . . . . . . . 8 . . . . . Parts Built 2 | . . . . . . . . . . . 2 . Authchips . | . . . . . . . . . . . . . Time 84 | . . . . . . . . . . . 84 . Total Part Build Rating 8 | . . . . . . . . . . . 8 . Parts Repaired 3 | . 1 . . . . . . . . . 2 . Time 108 | . 26 . . . . . . . . . 82 . Parts Recycled . | . . . . . . . . . . . . . Recycled Matter . | . . . . . . . . . . . . . Retrieved Matter . | . . . . . . . . . . . . . Retrieved Components . | . . . . . . . . . . . . . Parts Scanalyzed 4 | . . . . . . . 4 . . . . . Part Schematics Acquired 4 | . . . . . . . 4 . . . . . Parts Damaged . | . . . . . . . . . . . . . Bothacking | -11 -10 -10 -9 -9 -9 -8 -8 -8 -8 -8 -6 -6 ------------ Run | Yrd Mat Min Mat Min Exi Min Mat Sto Gar Rec Fac Low Used RIF Installer . | . . . . . . . . . . . . . Robots Hacked . | . . . . . . . . . . . . . Non-combat . | . . . . . . . . . . . . . Combat . | . . . . . . . . . . . . . Robot Hacks Applied . | . . . . . . . . . . . . . Relay Couplers Released 22 | . . . . . . . . . 20 . 2 . Machine Destruction 19 | . . . . . . . . . 17 . 2 . Programmers 3 | . . . . . . . . . 3 . . . Fabnet Peak Effective % . | . . . . . . . . . . . . . Robots Rewired 3 | . . . . . . . . . 3 . . . Allies Hacked . | . . . . . . . . . . . . . Hacks Repelled . | . . . . . . . . . . . . . Allies | -11 -10 -10 -9 -9 -9 -8 -8 -8 -8 -8 -6 -6 -------- Run | Yrd Mat Min Mat Min Exi Min Mat Sto Gar Rec Fac Low Total Allies 13 | . . . . . . . . 10 3 . . . Largest Group 10 | . . . . . . . . 10 9 . . . Highest-Rated Group 173 | . . . . . . . . 173 157 . . . Highest-Rated Ally 29 | . . . . . . . . 29 29 . . . Total Orders . | . . . . . . . . . . . . . Ally Attacks 92 | . . . . . . . . 20 72 . . . Total Damage 1335 | . . . . . . . . 307 1028 . . . Kills 12 | . . . . . . . . 2 10 . . . Allies Corrupted . | . . . . . . . . . . . . . Allies Melted 1 | . . . . . . . . . 1 . . . Intel | -11 -10 -10 -9 -9 -9 -8 -8 -8 -8 -8 -6 -6 ------- Run | Yrd Mat Min Mat Min Exi Min Mat Sto Gar Rec Fac Low Robot Analysis Total 7 | . 3 . 1 . . . 2 . . 1 . . Derelict Logs Recovered 5 | . . 1 . 2 . . . . . . . 2 Drone Launches . | . . . . . . . . . . . . . Drone Recoveries . | . . . . . . . . . . . . . Exploration | -11 -10 -10 -9 -9 -9 -8 -8 -8 -8 -8 -6 -6 ------------- Run | Yrd Mat Min Mat Min Exi Min Mat Sto Gar Rec Fac Low Turns Passed 11712 | 77 979 579 235 903 427 232 1458 970 2023 1248 1995 586 Spaces Moved 4708 | 44 500 298 91 478 259 117 546 354 684 486 647 204 Core 18 | 9 . . . . . . . . . . . 9 Treads 4655 | 35 500 298 91 478 259 117 511 354 684 486 647 195 Legs . | . . . . . . . . . . . . . Wheels 35 | . . . . . . . 35 . . . . . Hover . | . . . . . . . . . . . . . Flight . | . . . . . . . . . . . . . Fastest Speed 50 | 50 160 160 165 165 165 165 125 245 245 250 163 50 Average Speed 208 | 137 160 163 170 179 165 165 206 245 247 250 221 237 Slowest Speed 250 | 160 240 165 250 250 165 165 245 245 250 250 250 246 Overloaded Moves . | . . . . . . . . . . . . . Propulsion Burnouts . | . . . . . . . . . . . . . Robots Hopped . | . . . . . . . . . . . . . Cave-ins Triggered . | . . . . . . . . . . . . . Exploration Rate (%) 54 | 5 82 57 19 94 67 52 55 45 85 83 22 46 Regions Visited 12 Branch Regions 7 Pre-discovered Areas 3 | . . . . . 1 . . . . . . 2 Known Exits Taken 4 | . . . . . . . 1 1 . 1 1 . Unknown Exits Taken 7 | 1 1 1 1 1 1 1 . . . . . . Scrap Searched 6 | . . 2 . 1 . 1 . . . . . 2 Spaces Dug 2 | . . . . . . . . . 2 . . . Terrain Destroyed 308 | . 16 . 33 6 . 34 33 17 2 12 105 50 Melee 2 | . . . . . . . . . 2 . . . Projectile 8 | . . . . . . . 4 3 . . . 1 AOE 298 | . 16 . 33 6 . 34 29 14 . 12 105 49 Terrain Rammed . | . . . . . . . . . . . . . Walls Destroyed . | . . . . . . . . . . . . . Machines Disabled . | . . . . . . . . . . . . . Actions | -11 -10 -10 -9 -9 -9 -8 -8 -8 -8 -8 -6 -6 --------- Run | Yrd Mat Min Mat Min Exi Min Mat Sto Gar Rec Fac Low Total 5699 | 60 590 352 132 495 259 137 704 414 842 501 956 257 Wait 158 | . 21 12 2 . . 1 2 9 12 . 93 6 Move 4696 | 43 499 297 90 477 258 116 545 353 683 485 646 204 Hop . | . . . . . . . . . . . . . Pick Up 110 | 10 14 9 5 1 1 1 21 6 4 1 33 4 Fast Attach 18 | . . . . 1 . . 6 3 . 2 6 . Attach 70 | 6 4 1 3 1 . 3 10 . 5 . 26 11 Detach 3 | . . . . . . . 2 . . . 1 . Swap 47 | 1 2 2 4 . . 3 10 3 7 1 10 4 Drop 45 | . 1 9 4 . . . 10 9 . 1 11 . Fire 443 | . 49 22 24 15 . 13 72 25 71 6 124 22 Melee 52 | . . . . . . . 26 . 11 5 4 6 Ram . | . . . . . . . . . . . . . Kick . | . . . . . . . . . . . . . Crush . | . . . . . . . . . . . . . Escape Stasis 14 | . . . . . . . . 6 6 . 2 . Rewire 43 | . . . . . . . . . 43 . . . Trap . | . . . . . . . . . . . . . Miscellaneous . | . . . . . . . . . . . . . Route ------- -11/Scrapyard -10/Materials (discovered 4 exits: *Mat x3 / *Min) -10/Mines -9/Materials -9/Mines (discovered 3 exits: *Mat x2 / *Exi) -9/Exiles -8/Mines (discovered 2 exits: *Mat x2) -8/Materials (discovered 3 exits: *Fac x2 / *Sto) -8/Storage -8/Garrison (discovered 3 exits: *Rec x3) -8/Recycling -6/Factory (discovered 2 exits: *Low x2) -6/Lower Caves History --------- Turn | Location | Event 9 | -11/Scrapyard | Discovered new exit (range 16) 78 | -11/Scrapyard | Entered Materials 313 | -10/Materials | Destroyed 9 combat bots 313 | -10/Materials | Discovered new exit (range 7) 317 | -10/Materials | Build established: Mutant 430 | -10/Materials | Central database locked down 476 | -10/Materials | Discovered new exit (range 11) 521 | -10/Materials | Repaired Lgt. Treads 823 | -10/Materials | Discovered new exit (range 8) 1025 | -10/Materials | Discovered new exit (range 9) 1057 | -10/Materials | Entered Mines 1185 | -10/Mines | Met a Derelict shopkeep closing up shop 1289 | -10/Mines | Received a Rocket Launcher from a helpful Derelict 1312 | -10/Mines | Learned Materials emergency access door positions 1407 | -10/Mines | Assembled infested the area 1454 | -10/Mines | Core integrity fell below 50% 1616 | -10/Mines | Discovered new exit (range 9) 1636 | -10/Mines | Entered Materials 1636 | -9/Materials | Evolved 2 slots: Utility x2 1822 | -9/Materials | Discovered new exit (range 8) 1871 | -9/Materials | Entered Mines 2246 | -9/Mines | Discovered new exit (range 11) 2307 | -9/Mines | Learned Materials terminal intel 2443 | -9/Mines | Discovered new exit (range 6) 2768 | -9/Mines | Deemed a non-threat by the Exiles lab entrance 2768 | -9/Mines | Discovered new exit (range 5) 2774 | -9/Mines | Entered Exiles 2814 | -9/Exiles | Met 8R-AWN 2839 | -9/Exiles | Met EX-HEX 2905 | -9/Exiles | Met EX-DEC 2971 | -9/Exiles | Met EX-BIN 3100 | -9/Exiles | Learned location of Zion (-6) 3188 | -9/Exiles | Discovered new exit (range 10) 3201 | -9/Exiles | Entered Mines 3273 | -8/Mines | Core integrity fell below 50% 3311 | -8/Mines | Lost 4 parts (2u2w) 3328 | -8/Mines | Discovered new exit (range 9) 3395 | -8/Mines | Discovered new exit (range 7) 3433 | -8/Mines | Entered Materials 3433 | -8/Materials | Evolved 2 slots: Utility x1, Weapon x1 3434 | -8/Materials | Identified exit to Factory 3435 | -8/Materials | Loaded intel: 12 terminal locations 3803 | -8/Materials | Lost 3 parts (1n2u) 3959 | -8/Materials | Lost 3 parts (1n2w) 4046 | -8/Materials | Discovered exit to Factory (range 10) 4446 | -8/Materials | Build established: Tank 4823 | -8/Materials | Discovered new exit (range 15) 4889 | -8/Materials | Identified exit to Storage 4891 | -8/Materials | Entered Storage 4926 | -8/Storage | Identified exit to Garrison 4964 | -8/Storage | Build established: Skirmisher 5709 | -8/Storage | Assisted by bots powering up and referring to "LRC-V3" 5861 | -8/Storage | Entered Garrison 5861 | -8/Garrison | Accompanied by 9 allies 6027 | -8/Garrison | Lost 8 allies 6167 | -8/Garrison | Triggered checkpoint 6224 | -8/Garrison | Garrison Relay disabled 6317 | -8/Garrison | Discovered new exit (range 11) 6339 | -8/Garrison | Identified exit to Recycling 6417 | -8/Garrison | Triggered checkpoint 6422 | -8/Garrison | Core integrity fell below 50% 6513 | -8/Garrison | Destroyed 8 combat bots 6668 | -8/Garrison | Discovered exit to Recycling (range 9) 6733 | -8/Garrison | Triggered checkpoint 6817 | -8/Garrison | Garrison Relay disabled 6891 | -8/Garrison | Triggered checkpoint 7018 | -8/Garrison | Discovered exit to Recycling (range 11) 7093 | -8/Garrison | Triggered checkpoint 7291 | -8/Garrison | Triggered checkpoint 7314 | -8/Garrison | Garrison Relay disabled 7561 | -8/Garrison | Garrison Relay disabled 7583 | -8/Garrison | Triggered checkpoint 7647 | -8/Garrison | Garrison Relay disabled 7884 | -8/Garrison | Entered Recycling 8517 | -8/Recycling | Discovered new exit (range 5) 8532 | -8/Recycling | Identified exit to Factory 9042 | -8/Recycling | Build established: Mutant 9132 | -8/Recycling | Entered Factory 9132 | -6/Factory | Evolved 4 slots: Propulsion x1, Utility x2, Weapon x1 9592 | -6/Factory | Spotted B-75 Beast 9611 | -6/Factory | Garrison activated, responded to threat 9615 | -6/Factory | Destroyed B-75 Beast 9708 | -6/Factory | Identified exit to Lower Caves 9930 | -6/Factory | Fabricated Med. Treads? 10600 | -6/Factory | Repaired Hrd. Medium Armor Plating 10645 | -6/Factory | Repaired Med. Treads 10716 | -6/Factory | Build established: Scavenger-Gunner 10882 | -6/Factory | First assault squad dispatched 11127 | -6/Factory | Entered Lower Caves 11129 | -6/Lower Caves | Attracted the attention of an 0b10 checkpoint 11155 | -6/Lower Caves | Met a Warlord Commander 11156 | -6/Lower Caves | Learned location of Warlord (-5) 11157 | -6/Lower Caves | Warlord Commander delivered Encrypted Comm Array 11168 | -6/Lower Caves | Found Encrypted Comm Array 11634 | -6/Lower Caves | Attracted the attention of an 0b10 outpost 11663 | -6/Lower Caves | Core integrity fell below 50% 11686 | -6/Lower Caves | Core integrity fell below 20% 11709 | -6/Lower Caves | Released all parts (6) 11713 | -6/Lower Caves | Destroyed by G-50 Soldier with Heavy Laser Last Messages --------------- KE Penetrator melted. Wave Gun melted. Y-64 Sentinel destroyed. Cryofiber Web destroyed. The unstable cave ceiling collapses. Lgt. Angular Momentum Engine fries itself beyond repair. Released Imp. Signal Interpreter. Released Hcp. Storage Unit. Released Core Analyzer. Released Adv. Treads. Released Hvy. Plasma Cannon. Released Hvy. Pick. Acquired 51 matter. Imp. Medium Armor Plating fries itself beyond repair. Unknown Device fries itself beyond repair. Acquired derelict log, extracted data. Data stored: Extension entrances (x1). Critical hit (Burn: +37). Map ----- +----------------------------------------------------+ | ????????# ?????????????????# " ##? #???????? | | ???????## ????????????????# "" ## #???????? | | ???????? #???????????????# """ #???????? | | ????????? #??????????????# "" #???????? | | ?????????? ##????????##### """ " #????###? | | ???????????# ??????## "" "" #???## ## | | ????????????# ??????# """ """ #???# | | ?????????????# ??##### "" #??## # | | ??????????????# ### """ #??# | | ???????????????# "" #### | | ???????########## ### """ | | ???????# #### # | | ???????# #??## ## % | | ???????# " "" #???# ## #######% | | ???????# """""" #???# ### #?????## | | ???????# " " ##### #?# #??????### | | ???????# #?# #???????## | | ???????# """" "" #?# #???????# | | ???????# ## """"" ########?# %???????## % | | ???????# ### " #????????## ???????# # | | ???????# # #??????????# ?????? ## | | ???????# #???????????# ????# ## | | ???????##### # ### ###????????????# ???# %#### | | ???????????##### #???#???????????????%??? ???# | | ???????????????# ### ######?????????????#####???# | | ??????????###### @#???##????????????????# | | ??????????# ####### #??# #????????????????# | | ??????????# #### #""""# ### ####### ????????# | | ??????????# #??# #" # ????????## | | ??????????# #### # ???????## | | ??????????# # $ ## | | ??????????###### #" # """" """" ????# | | ????????????### # """#g=%% """" ""???????# # | | ????????????# # /!%b[== """" ?????????# #? | | ?????????????# % !=!!% """"?????????# ??? | | ?????????????## ]!!#= """???????? ???? | | ??????????????# [!## """" ???????# ????? | | ??????????????### #? ???????# ?????? | | ????????????????#### ###? """" "??????? ??????? | | ???????????????????# #??? """" "??????????????? | | ???????????????????# ??? """" ???????????????# | | ???????????????????# ??? """?????????????## ## | | ???????????????????## #??? """?????????????# | | ?????????????????????##??? "??????????????## | | ??????????????????????????? ??????????????# | | ??????????????????????????? ??????????????# | | ??????????????????????????? ??????????????# ## | | ??????????????????????????? ????????????????# ?? | | ????????????????????????????????????????????# ??? | | ???????????????????????????????????????????# ??? | +----------------------------------------------------+ Best States ------------- Heat Dissipation 73 Energy Generation 21 Energy Capacity 290 Matter Stores 300 Matter Capacity 300 Sight Range 16 Robot Scan Range 15 Terrain Scan Range 16 Terrain Scan Density 10 Jamming Range 12 Base Temperature (-) 100 Armor Coverage 375 Resistance: TH 20 Evasion (%) 50 Targeting Accuracy 8 Core Analysis 6 Recoil Reduction 3 Authchip Count 1 Item Schematics ----------------- Hcp. Storage Unit | -8/Materials | Scanalyzed Arm. Treads | -8/Materials | Scanalyzed Pulse Rifle | -8/Materials | Extracted Imp. Medium Laser | -8/Materials | Extracted Med. Treads | -8/Materials | Scanalyzed Rocket Launcher | -8/Materials | Scanalyzed Huge Storage Unit | -8/Materials | Extracted Disposable Heat Sink | -8/Materials | Extracted Robot Schematics ------------------ L-31 Rogue | -8/Storage | Hacked Fabricated ------------ Med. Treads | x2 | -6/Factory Alien Tech Used ----------------- None Achievements -------------- None Challenges ------------ None Game ------ Seed AntigravTerrabombMapper Manual? 0 Play Time 01:51:16 Cumulative 109.8 hours Start 2024.05.19 @ 04:18:00 End 2024.05.19 @ 12:58:03 Sessions 3 Manual Loads 0 Difficulty Rogue Special Mode None Game No. 111 Rogue 102 Adventurer 9 Explorer 0 Win Type - Total 0 Types 0/0/0/0/0/0/0/0/0 Lore% 55 Gallery% 63 Achievement% 47 Wizard Run 0 Options --------- Layout 1 ASCII 0 Keyboard 0 Movement Numpad Keybinds 0 Fullscreen 1 Font 24/Smallcaps Map View 50x35 Zoom Use 0% Tactical HUD 0 Map Filters NONE Filters NONE Steam 1 RUN: 105d7225-e8e2-4c8a-aa09-3ac6aff35f6b